[Event "*** Titled Tuesday Blitz"]
[Site "Chess.com"]
[Date "2021.04.27"]
[Round "6"]
[White "mishanick"]
[Black "platy3"]
[Result "1-0"]
[WhiteElo "3020"]
[BlackElo "2848"]
[TimeControl "180+1"]
[EndTime "11:08:28 PDT"]
[Termination "mishanick won on time"]

1. e4 {[%clk 0:03:00.9]} 1... c5 {[%clk 0:02:58.5]} 2. Nf3 {[%clk 0:03:01.4]}
2... e6 {[%clk 0:02:58.1]} 3. d4 {[%clk 0:02:57.9]} 3... cxd4 {[%clk 0:02:59]}
4. Nxd4 {[%clk 0:02:58.8]} 4... Nc6 {[%clk 0:02:59.1]} 5. Nc3 {[%clk 0:02:58.5]}
5... Qc7 {[%clk 0:02:59.5]} 6. Be2 {[%clk 0:02:57.3]} 6... a6 {[%clk 0:02:59.5]}
7. Qd3 {[%clk 0:02:57.2]} 7... Nf6 {[%clk 0:02:55.9]} 8. Nxc6 {[%clk 0:02:57.2]}
8... dxc6 {[%clk 0:02:43.4]} 9. f4 {[%clk 0:02:40.4]} 9... e5 {[%clk 0:02:39.1]}
10. O-O {[%clk 0:02:38.9]} 10... Be6 {[%clk 0:02:22.4]} 11. Kh1 {[%clk
0:02:30.5]} 11... h5 {[%clk 0:02:04.3]} 12. fxe5 {[%clk 0:02:09.9]} 12... Ng4
{[%clk 0:01:37.9]} 13. Bf4 {[%clk 0:02:07.7]} 13... Rd8 {[%clk 0:01:37.2]} 14.
Qf3 {[%clk 0:02:01.4]} 14... Nxe5 {[%clk 0:01:15.4]} 15. Qg3 {[%clk 0:01:59.6]}
15... h4 {[%clk 0:01:15.7]} 16. Qf2 {[%clk 0:01:06.4]} 16... Bd6 {[%clk
0:01:13.3]} 17. h3 {[%clk 0:01:05.4]} 17... Ng6 {[%clk 0:01:05.7]} 18. Bg5
{[%clk 0:01:01.4]} 18... Be7 {[%clk 0:01:06]} 19. Be3 {[%clk 0:00:59.5]} 19...
Qe5 {[%clk 0:01:02]} 20. Rad1 {[%clk 0:00:56.3]} 20... Bd6 {[%clk 0:01:01.1]}
21. Qg1 {[%clk 0:00:54.1]} 21... f6 {[%clk 0:00:37.3]} 22. Bd4 {[%clk
0:00:50.5]} 22... Qg5 {[%clk 0:00:37.2]} 23. Be3 {[%clk 0:00:50.1]} 23... Qe5
{[%clk 0:00:36.6]} 24. Bd4 {[%clk 0:00:47]} 24... Qg5 {[%clk 0:00:36.4]} 25. Bb6
{[%clk 0:00:31.6]} 25... Rd7 {[%clk 0:00:34.3]} 26. Be3 {[%clk 0:00:32.1]} 26...
Qe5 {[%clk 0:00:25.6]} 27. Bd4 {[%clk 0:00:31.9]} 27... Qg5 {[%clk 0:00:25.8]}
28. Be3 {[%clk 0:00:32]} 28... Qe5 {[%clk 0:00:20.4]} 29. Bf3 {[%clk 0:00:27]}
29... O-O {[%clk 0:00:14.2]} 30. Bd4 {[%clk 0:00:26.8]} 30... Qa5 {[%clk
0:00:13.3]} 31. a3 {[%clk 0:00:25.3]} 31... Bc7 {[%clk 0:00:10.2]} 32. Bc5
{[%clk 0:00:18.1]} 32... Rxd1 {[%clk 0:00:09.9]} 33. Rxd1 {[%clk 0:00:17.5]}
33... Rd8 {[%clk 0:00:10.5]} 34. Rxd8+ {[%clk 0:00:14]} 34... Bxd8 {[%clk
0:00:11.4]} 35. Qd4 {[%clk 0:00:14.3]} 35... Qc7 {[%clk 0:00:08.7]} 36. Bd6
{[%clk 0:00:13.5]} 36... Qd7 {[%clk 0:00:09]} 37. Qc5 {[%clk 0:00:10.7]} 37...
Bc7 {[%clk 0:00:07.7]} 38. Bxc7 {[%clk 0:00:10.4]} 38... Qxc7 {[%clk 0:00:08.6]}
39. Ne2 {[%clk 0:00:09.3]} 39... Ne5 {[%clk 0:00:05.4]} 40. Nd4 {[%clk
0:00:09.4]} 40... Bf7 {[%clk 0:00:05.9]} 41. b4 {[%clk 0:00:07.6]} 41... b6
{[%clk 0:00:05.9]} 42. Qc3 {[%clk 0:00:07.7]} 42... Qd7 {[%clk 0:00:06.1]} 43.
Nf5 {[%clk 0:00:07.3]} 43... Be6 {[%clk 0:00:05.3]} 44. Nxh4 {[%clk 0:00:07.2]}
44... g5 {[%clk 0:00:01.8]} 45. Nf5 {[%clk 0:00:07.5]} 45... Bxf5 {[%clk
0:00:02.4]} 46. exf5 {[%clk 0:00:08.4]} 46... Qxf5 {[%clk 0:00:03]} 47. Bxc6
{[%clk 0:00:07.6]} 47... Qf1+ {[%clk 0:00:03]} 48. Kh2 {[%clk 0:00:08.1]} 48...
Qf4+ {[%clk 0:00:03.7]} 49. g3 {[%clk 0:00:08.7]} 49... Qf2+ {[%clk 0:00:02.5]}
50. Bg2 {[%clk 0:00:09.4]} 50... Kg7 {[%clk 0:00:03]} 51. a4 {[%clk 0:00:08.9]}
51... Kg6 {[%clk 0:00:02]} 52. a5 {[%clk 0:00:09.2]} 52... bxa5 {[%clk
0:00:02.3]} 53. bxa5 {[%clk 0:00:09.9]} 53... g4 {[%clk 0:00:02.8]} 54. hxg4
{[%clk 0:00:06.6]} 54... Nxg4+ {[%clk 0:00:02.5]} 55. Kh3 {[%clk 0:00:04.5]}
55... Ne5 {[%clk 0:00:03.1]} 56. Qb4 {[%clk 0:00:02.8]} 56... Qf5+ {[%clk
0:00:03.1]} 57. g4 {[%clk 0:00:03.3]} 57... Qg5 {[%clk 0:00:02.5]} 58. Qe4+
{[%clk 0:00:03.7]} 58... Kh6 {[%clk 0:00:03.1]} 59. Kg3 {[%clk 0:00:04.2]} 59...
Qd2 {[%clk 0:00:02.5]} 60. Qf4+ {[%clk 0:00:04.6]} 60... Qxf4+ {[%clk 0:00:03]}
61. Kxf4 {[%clk 0:00:05.5]} 61... Nc4 {[%clk 0:00:03.7]} 62. Bf1 {[%clk
0:00:04.3]} 62... Nxa5 {[%clk 0:00:04]} 63. Bxa6 {[%clk 0:00:04.9]} 63... Nc6
{[%clk 0:00:04.6]} 64. Ke4 {[%clk 0:00:03.8]} 64... Nb4 {[%clk 0:00:04.4]} 65.
Bd3 {[%clk 0:00:04]} 65... Kg5 {[%clk 0:00:04.3]} 66. Kf3 {[%clk 0:00:04.2]}
66... Nd5 {[%clk 0:00:02.9]} 67. Bf5 {[%clk 0:00:04.5]} 67... Nc3 {[%clk
0:00:02.3]} 68. Bd3 {[%clk 0:00:03.4]} 68... Nd5 {[%clk 0:00:01.6]} 69. c4
{[%clk 0:00:03.6]} 69... Nb4 {[%clk 0:00:01.8]} 70. Be4 {[%clk 0:00:03.8]} 70...
Na6 {[%clk 0:00:02.5]} 71. Bf5 {[%clk 0:00:03.8]} 71... Nc5 {[%clk 0:00:03.1]}
72. Ke3 {[%clk 0:00:04.2]} 72... Nb7 {[%clk 0:00:01.7]} 73. Kd4 {[%clk 0:00:04]}
73... Kf4 {[%clk 0:00:01.5]} 74. Kd5 {[%clk 0:00:03.7]} 74... Na5 {[%clk
0:00:02.1]} 75. c5 {[%clk 0:00:04]} 75... Ke3 {[%clk 0:00:02.7]} 76. c6 {[%clk
0:00:04.5]} 1-0

[Event "*** Titled Tuesday Blitz"]
[Site "Chess.com"]
[Date "2021.04.27"]
[Round "6"]
[White "Vugar_Manafov"]
[Black "GM_dmitrij"]
[Result "0-1"]
[WhiteElo "2739"]
[BlackElo "2955"]
[TimeControl "180+1"]
[EndTime "11:08:47 PDT"]
[Termination "GM_dmitrij won by resignation"]

1. d4 {[%clk 0:03:00.9]} 1... Nf6 {[%clk 0:02:59.6]} 2. c4 {[%clk 0:03:00.5]}
2... e6 {[%clk 0:02:59.4]} 3. Nf3 {[%clk 0:02:58.1]} 3... b6 {[%clk 0:02:58.9]}
4. g3 {[%clk 0:02:57.3]} 4... Ba6 {[%clk 0:02:57.5]} 5. b3 {[%clk 0:02:55.6]}
5... Bb4+ {[%clk 0:02:54.9]} 6. Bd2 {[%clk 0:02:53.9]} 6... Be7 {[%clk
0:02:55.3]} 7. Bg2 {[%clk 0:02:52.8]} 7... d5 {[%clk 0:02:56.2]} 8. O-O {[%clk
0:02:47.4]} 8... O-O {[%clk 0:02:56.6]} 9. Nc3 {[%clk 0:02:45.5]} 9... c6 {[%clk
0:02:25.2]} 10. Rc1 {[%clk 0:02:22.3]} 10... dxc4 {[%clk 0:02:21.2]} 11. bxc4
{[%clk 0:02:22.7]} 11... Bxc4 {[%clk 0:02:14]} 12. Ne5 {[%clk 0:02:21.3]} 12...
Qxd4 {[%clk 0:02:08.7]} 13. Nxc4 {[%clk 0:02:16.3]} 13... Qxc4 {[%clk
0:02:09.6]} 14. Nd5 {[%clk 0:02:16]} 14... exd5 {[%clk 0:02:00]} 15. Rxc4 {[%clk
0:02:14.2]} 15... dxc4 {[%clk 0:02:00.9]} 16. Qc2 {[%clk 0:02:06.2]} 16... b5
{[%clk 0:01:58.9]} 17. a4 {[%clk 0:02:05.2]} 17... a6 {[%clk 0:01:48]} 18. Ra1
{[%clk 0:02:01.1]} 18... Ra7 {[%clk 0:01:45.2]} 19. axb5 {[%clk 0:01:44.5]}
19... cxb5 {[%clk 0:01:46.1]} 20. Be3 {[%clk 0:01:43.6]} 20... Rd7 {[%clk
0:01:39.2]} 21. Bf4 {[%clk 0:01:31.2]} 21... Bd6 {[%clk 0:01:34.5]} 22. Be3
{[%clk 0:01:09.7]} 22... Be5 {[%clk 0:01:28.8]} 23. Ra2 {[%clk 0:01:09]} 23...
Rfd8 {[%clk 0:01:26.8]} 24. h3 {[%clk 0:01:05.6]} 24... Nd5 {[%clk 0:01:25.3]}
25. Bxd5 {[%clk 0:00:38.6]} 25... Rxd5 {[%clk 0:01:26.2]} 26. Bb6 {[%clk
0:00:37.8]} 26... R8d7 {[%clk 0:01:09.4]} 27. Qe4 {[%clk 0:00:34.6]} 27... f5
{[%clk 0:00:08.3]} 28. Qxf5 {[%clk 0:00:33.8]} 28... g6 {[%clk 0:00:08]} 29.
Qe6+ {[%clk 0:00:32.7]} 29... Kg7 {[%clk 0:00:08.9]} 30. Kg2 {[%clk 0:00:26.4]}
30... Bf6 {[%clk 0:00:08.9]} 31. Be3 {[%clk 0:00:23.3]} 31... R5d6 {[%clk
0:00:08.8]} 32. Qe4 {[%clk 0:00:21.7]} 32... Re7 {[%clk 0:00:07.9]} 33. Qa8
{[%clk 0:00:20.6]} 33... Rd8 {[%clk 0:00:02.7]} 34. Bc5 {[%clk 0:00:19.8]} 34...
Red7 {[%clk 0:00:02.5]} 35. Qe4 {[%clk 0:00:19.1]} 35... Rg8 {[%clk 0:00:02]}
36. h4 {[%clk 0:00:18.4]} 36... Rf7 {[%clk 0:00:02.4]} 37. h5 {[%clk 0:00:17.8]}
37... Nd7 {[%clk 0:00:02.9]} 38. hxg6 {[%clk 0:00:17]} 38... hxg6 {[%clk
0:00:03.8]} 39. Be3 {[%clk 0:00:16.7]} 39... b4 {[%clk 0:00:03.3]} 40. Qxc4
{[%clk 0:00:16]} 40... Rb8 {[%clk 0:00:04]} 41. Qxa6 {[%clk 0:00:14.5]} 41... b3
{[%clk 0:00:03.9]} 42. Rd2 {[%clk 0:00:14.5]} 42... b2 {[%clk 0:00:04.3]} 43.
Rd1 {[%clk 0:00:13.3]} 43... b1=Q {[%clk 0:00:04.6]} 44. Rxb1 {[%clk 0:00:13.2]}
44... Rxb1 {[%clk 0:00:05.5]} 45. Qd6 {[%clk 0:00:13.7]} 45... Rb2 {[%clk
0:00:05.3]} 46. Qd3 {[%clk 0:00:12.9]} 46... Rb7 {[%clk 0:00:04.4]} 47. Qe4
{[%clk 0:00:12.3]} 47... Ne5 {[%clk 0:00:04.5]} 48. Bf4 {[%clk 0:00:11.4]} 48...
Rbe7 {[%clk 0:00:04.6]} 49. Qd5 {[%clk 0:00:11.2]} 49... Nd7 {[%clk 0:00:04.4]}
50. Qf3 {[%clk 0:00:10.4]} 50... Re6 {[%clk 0:00:04.4]} 51. Qd3 {[%clk
0:00:10.1]} 51... Ne5 {[%clk 0:00:04.3]} 52. Qd5 {[%clk 0:00:09.3]} 52... Rfe7
{[%clk 0:00:04.8]} 53. Qc5 {[%clk 0:00:09]} 53... Nf7 {[%clk 0:00:05]} 54. e3
{[%clk 0:00:08.1]} 54... Be5 {[%clk 0:00:05.5]} 55. Bxe5+ {[%clk 0:00:07.8]}
55... Rxe5 {[%clk 0:00:06.4]} 56. Qd4 {[%clk 0:00:08.6]} 56... Kg8 {[%clk
0:00:06.6]} 57. Qg4 {[%clk 0:00:07.6]} 57... R5e6 {[%clk 0:00:07.5]} 58. Qd4
{[%clk 0:00:07.3]} 58... Ne5 {[%clk 0:00:07.8]} 59. Qe4 {[%clk 0:00:07.1]} 59...
Kf7 {[%clk 0:00:08.2]} 60. Qd4 {[%clk 0:00:06.9]} 60... Nd7 {[%clk 0:00:07.8]}
61. Qf4+ {[%clk 0:00:07.3]} 61... Nf6 {[%clk 0:00:08.3]} 62. Qc4 {[%clk
0:00:08.2]} 62... Kg7 {[%clk 0:00:08.1]} 63. Qd4 {[%clk 0:00:07.5]} 63... Re5
{[%clk 0:00:08.6]} 64. Qc3 {[%clk 0:00:07.7]} 64... g5 {[%clk 0:00:08.4]} 65.
Qd4 {[%clk 0:00:07.3]} 65... g4 {[%clk 0:00:08.7]} 66. Qf4 {[%clk 0:00:07.5]}
66... Kg6 {[%clk 0:00:08.1]} 67. Qd4 {[%clk 0:00:08]} 67... Rf5 {[%clk
0:00:08.1]} 68. Qd3 {[%clk 0:00:07.7]} 68... Re5 {[%clk 0:00:07.2]} 69. Qd8
{[%clk 0:00:07.1]} 69... Kf7 {[%clk 0:00:06.7]} 70. Qc7+ {[%clk 0:00:06.3]}
70... Re7 {[%clk 0:00:06.9]} 71. Qc4+ {[%clk 0:00:05.2]} 71... Kg7 {[%clk
0:00:07.1]} 72. Kg1 {[%clk 0:00:05.9]} 72... Rh5 {[%clk 0:00:06.8]} 73. Qd4
{[%clk 0:00:05.1]} 73... Rd7 {[%clk 0:00:06.5]} 74. Qf4 {[%clk 0:00:04.5]} 74...
Rd1+ {[%clk 0:00:05.3]} 75. Kg2 {[%clk 0:00:04.9]} 75... Rdh1 {[%clk 0:00:05]}
76. Qc7+ {[%clk 0:00:04.6]} 76... Kg6 {[%clk 0:00:05.3]} 77. Qc2+ {[%clk
0:00:04.5]} 77... Kh6 {[%clk 0:00:05.8]} 0-1

[Event "*** Titled Tuesday Blitz"]
[Site "Chess.com"]
[Date "2021.04.27"]
[Round "6"]
[White "CrushingKings"]
[Black "sokidze"]
[Result "0-1"]
[WhiteElo "2518"]
[BlackElo "2698"]
[TimeControl "180+1"]
[EndTime "11:08:52 PDT"]
[Termination "sokidze won on time"]

1. e4 {[%clk 0:02:16.9]} 1... c6 {[%clk 0:02:57]} 2. Nf3 {[%clk 0:02:17]} 2...
d5 {[%clk 0:02:56.9]} 3. Nc3 {[%clk 0:02:17.9]} 3... dxe4 {[%clk 0:02:57]} 4.
Nxe4 {[%clk 0:02:18.8]} 4... Nf6 {[%clk 0:02:57.6]} 5. Nxf6+ {[%clk 0:02:19.3]}
5... exf6 {[%clk 0:02:57.9]} 6. d4 {[%clk 0:02:20.2]} 6... Bd6 {[%clk
0:02:57.7]} 7. h3 {[%clk 0:02:20.6]} 7... O-O {[%clk 0:02:54.9]} 8. Be2 {[%clk
0:02:21.2]} 8... Bf5 {[%clk 0:02:50.4]} 9. O-O {[%clk 0:02:21.7]} 9... Nd7
{[%clk 0:02:45.6]} 10. Be3 {[%clk 0:02:22]} 10... Qc7 {[%clk 0:02:42.8]} 11. Re1
{[%clk 0:02:20.9]} 11... Rfe8 {[%clk 0:02:41]} 12. c4 {[%clk 0:02:20.9]} 12...
Rad8 {[%clk 0:02:25.8]} 13. Qb3 {[%clk 0:02:20.7]} 13... Nf8 {[%clk 0:02:11.7]}
14. Rad1 {[%clk 0:02:19.9]} 14... Ng6 {[%clk 0:02:08.7]} 15. Bf1 {[%clk
0:02:20.1]} 15... Qc8 {[%clk 0:01:58.5]} 16. Qa4 {[%clk 0:02:12.6]} 16... Bb8
{[%clk 0:01:57.1]} 17. d5 {[%clk 0:02:04.4]} 17... cxd5 {[%clk 0:01:37.9]} 18.
cxd5 {[%clk 0:02:05.3]} 18... Be4 {[%clk 0:01:37.3]} 19. Bxa7 {[%clk 0:01:46.9]}
19... Bc2 {[%clk 0:01:22.9]} 20. Qa5 {[%clk 0:01:19.4]} 20... Bxd1 {[%clk
0:01:16.9]} 21. Rxd1 {[%clk 0:01:20.3]} 21... Bxa7 {[%clk 0:01:13.6]} 22. Qxa7
{[%clk 0:01:21.2]} 22... Nf4 {[%clk 0:01:14.1]} 23. Qa5 {[%clk 0:01:09.1]} 23...
Qc2 {[%clk 0:01:00.7]} 24. Rd2 {[%clk 0:00:53.3]} 24... Qc1 {[%clk 0:00:59.3]}
25. d6 {[%clk 0:00:46.1]} 25... h6 {[%clk 0:00:34]} 26. d7 {[%clk 0:00:41.2]}
26... Rf8 {[%clk 0:00:33.4]} 27. Qb5 {[%clk 0:00:36]} 27... Qc7 {[%clk
0:00:31.8]} 28. g3 {[%clk 0:00:32]} 28... Ne6 {[%clk 0:00:29.7]} 29. Bg2 {[%clk
0:00:30.6]} 29... b6 {[%clk 0:00:24.9]} 30. Kh2 {[%clk 0:00:30.7]} 30... Nc5
{[%clk 0:00:23.4]} 31. Rc2 {[%clk 0:00:15.3]} 31... Qxd7 {[%clk 0:00:23.2]} 32.
Qxb6 {[%clk 0:00:15.6]} 32... Ne6 {[%clk 0:00:17.6]} 33. b3 {[%clk 0:00:09.5]}
33... Rb8 {[%clk 0:00:17.5]} 34. Qe3 {[%clk 0:00:09.7]} 34... Rfc8 {[%clk
0:00:17.3]} 35. Rd2 {[%clk 0:00:09.9]} 35... Qc7 {[%clk 0:00:14.9]} 36. h4
{[%clk 0:00:10.5]} 36... Qc5 {[%clk 0:00:14.2]} 37. Qe2 {[%clk 0:00:10.2]} 37...
h5 {[%clk 0:00:13]} 38. Bh3 {[%clk 0:00:10.6]} 38... Re8 {[%clk 0:00:12]} 39.
Qd3 {[%clk 0:00:10.4]} 39... Rbd8 {[%clk 0:00:11.7]} 40. Qe2 {[%clk 0:00:08.5]}
40... Rxd2 {[%clk 0:00:03.1]} 41. Qxd2 {[%clk 0:00:09.4]} 41... Qe7 {[%clk
0:00:03.5]} 42. b4 {[%clk 0:00:08]} 42... Rd8 {[%clk 0:00:02.8]} 43. Qb2 {[%clk
0:00:07.8]} 43... Qa7 {[%clk 0:00:03]} 44. b5 {[%clk 0:00:07.6]} 44... Qb6
{[%clk 0:00:03.4]} 45. a4 {[%clk 0:00:07.3]} 45... Nc5 {[%clk 0:00:04]} 46. Qb4
{[%clk 0:00:05.9]} 46... Nd3 {[%clk 0:00:04.4]} 47. Qd2 {[%clk 0:00:05.9]} 47...
Nxf2 {[%clk 0:00:03.9]} 48. Qe2 {[%clk 0:00:05.8]} 48... Ng4+ {[%clk 0:00:04.3]}
49. Bxg4 {[%clk 0:00:05.9]} 49... hxg4 {[%clk 0:00:05.2]} 50. Nd2 {[%clk
0:00:05.5]} 50... Qd4 {[%clk 0:00:05.8]} 51. Ne4 {[%clk 0:00:05.2]} 51... f5
{[%clk 0:00:03.9]} 52. Nf2 {[%clk 0:00:03.4]} 52... Qd2 {[%clk 0:00:03.2]} 53.
Qxd2 {[%clk 0:00:03.7]} 53... Rxd2 {[%clk 0:00:04.1]} 54. Kg1 {[%clk 0:00:04.3]}
54... Ra2 {[%clk 0:00:04.8]} 55. Nd3 {[%clk 0:00:04.4]} 55... Rxa4 {[%clk
0:00:04]} 56. Ne5 {[%clk 0:00:03.8]} 56... Rb4 {[%clk 0:00:03.7]} 57. Nc6 {[%clk
0:00:02.3]} 57... Rxb5 {[%clk 0:00:04]} 58. Ne7+ {[%clk 0:00:03.2]} 58... Kf8
{[%clk 0:00:04.4]} 59. Nc8 {[%clk 0:00:04]} 59... Rc5 {[%clk 0:00:03.6]} 60. Nd6
{[%clk 0:00:04.9]} 60... g6 {[%clk 0:00:03]} 61. Nb7 {[%clk 0:00:05]} 61... Rc6
{[%clk 0:00:03]} 62. Na5 {[%clk 0:00:05.2]} 62... Rb6 {[%clk 0:00:03.1]} 63. Nc4
{[%clk 0:00:05.8]} 63... Rb8 {[%clk 0:00:03.7]} 64. Ne3 {[%clk 0:00:06.5]} 64...
Kg7 {[%clk 0:00:04.2]} 65. Nd5 {[%clk 0:00:07.1]} 65... Rd8 {[%clk 0:00:04.8]}
66. Nf4 {[%clk 0:00:07.4]} 66... Rd6 {[%clk 0:00:04.4]} 67. Kf2 {[%clk
0:00:07.4]} 67... Kf6 {[%clk 0:00:04.6]} 68. Ne2 {[%clk 0:00:07.5]} 68... Ra6
{[%clk 0:00:05.1]} 69. Nd4 {[%clk 0:00:07.4]} 69... Ra2+ {[%clk 0:00:05.7]} 70.
Ke3 {[%clk 0:00:07.6]} 70... Ra3+ {[%clk 0:00:06.4]} 71. Kf2 {[%clk 0:00:08.3]}
71... Kg7 {[%clk 0:00:05.9]} 72. Nc6 {[%clk 0:00:08.7]} 72... f4 {[%clk
0:00:05.1]} 73. gxf4 {[%clk 0:00:08.4]} 73... Rf3+ {[%clk 0:00:05.6]} 74. Kg2
{[%clk 0:00:09.1]} 74... Rxf4 {[%clk 0:00:06.3]} 75. Ne5 {[%clk 0:00:09.6]}
75... Re4 {[%clk 0:00:06.2]} 76. Nd3 {[%clk 0:00:09.7]} 76... f5 {[%clk
0:00:06.6]} 77. Nc5 {[%clk 0:00:10.4]} 77... Rc4 {[%clk 0:00:05.8]} 78. Ne6+
{[%clk 0:00:10.7]} 78... Kf6 {[%clk 0:00:06.5]} 79. Ng5 {[%clk 0:00:11.4]} 79...
f4 {[%clk 0:00:06.1]} 80. Kf2 {[%clk 0:00:10.3]} 80... Rc2+ {[%clk 0:00:06.2]}
81. Ke1 {[%clk 0:00:10.5]} 81... Kf5 {[%clk 0:00:06.8]} 82. Nf7 {[%clk
0:00:09.6]} 82... Rh2 {[%clk 0:00:06.5]} 83. Nd6+ {[%clk 0:00:10.5]} 83... Ke5
{[%clk 0:00:06.9]} 84. Nf7+ {[%clk 0:00:11]} 84... Ke4 {[%clk 0:00:06.8]} 85.
Ng5+ {[%clk 0:00:11.6]} 85... Ke3 {[%clk 0:00:07.4]} 86. Kf1 {[%clk 0:00:11.1]}
86... f3 {[%clk 0:00:07.8]} 87. Kg1 {[%clk 0:00:11.2]} 87... g3 {[%clk
0:00:07.5]} 0-1

[Event "*** Titled Tuesday Blitz"]
[Site "Chess.com"]
[Date "2021.04.27"]
[Round "7"]
[White "RamyresCoelho"]
[Black "shreyansshah123"]
[Result "1-0"]
[WhiteElo "2174"]
[BlackElo "1691"]
[TimeControl "180+1"]
[EndTime "11:10:00 PDT"]
[Termination "RamyresCoelho won by resignation"]

1. e4 {[%clk 0:02:58.8]} 1... c5 {[%clk 0:02:59]} 2. Nf3 {[%clk 0:02:58.9]} 2...
d6 {[%clk 0:02:59.4]} 3. d4 {[%clk 0:02:59.8]} 3... cxd4 {[%clk 0:02:59.9]} 4.
Nxd4 {[%clk 0:03:00.7]} 4... Nf6 {[%clk 0:03:00.4]} 5. Nc3 {[%clk 0:03:01.4]}
5... g6 {[%clk 0:03:00.9]} 6. f4 {[%clk 0:03:02]} 6... Bg7 {[%clk 0:03:01.4]} 7.
e5 {[%clk 0:03:02.7]} 7... dxe5 {[%clk 0:03:00.8]} 8. fxe5 {[%clk 0:03:03.6]}
8... Nd5 {[%clk 0:03:01.4]} 9. Bb5+ {[%clk 0:03:01.9]} 9... Bd7 {[%clk
0:02:59.3]} 10. Nxd5 {[%clk 0:03:00.9]} 10... Bxb5 {[%clk 0:02:59]} 11. Nxb5
{[%clk 0:03:01.8]} 11... e6 {[%clk 0:02:57.3]} 1-0

[Event "*** Titled Tuesday Blitz"]
[Site "Chess.com"]
[Date "2021.04.27"]
[Round "7"]
[White "vinniethepooh"]
[Black "Stormeman100100"]
[Result "1-0"]
[WhiteElo "2721"]
[BlackElo "2491"]
[TimeControl "180+1"]
[EndTime "11:12:44 PDT"]
[Termination "vinniethepooh won by resignation"]

1. d4 {[%clk 0:03:00.9]} 1... Nf6 {[%clk 0:02:58.1]} 2. c4 {[%clk 0:02:59.9]}
2... g6 {[%clk 0:02:57.3]} 3. Nc3 {[%clk 0:03:00]} 3... d5 {[%clk 0:02:57.6]} 4.
cxd5 {[%clk 0:03:00.9]} 4... Nxd5 {[%clk 0:02:58]} 5. Bd2 {[%clk 0:03:01.7]}
5... Bg7 {[%clk 0:02:56.8]} 6. e4 {[%clk 0:03:02.2]} 6... Nxc3 {[%clk
0:02:55.8]} 7. Bxc3 {[%clk 0:03:03.1]} 7... O-O {[%clk 0:02:56.5]} 8. Qd2 {[%clk
0:03:03.4]} 8... c5 {[%clk 0:02:55.9]} 9. d5 {[%clk 0:03:03]} 9... Qd6 {[%clk
0:02:56]} 10. f4 {[%clk 0:02:59.3]} 10... e6 {[%clk 0:02:51.3]} 11. Bc4 {[%clk
0:02:58.6]} 11... exd5 {[%clk 0:02:50.5]} 12. Bxd5 {[%clk 0:02:58]} 12... Qe7
{[%clk 0:02:36.4]} 13. Nf3 {[%clk 0:02:51]} 13... Nc6 {[%clk 0:02:35]} 14. O-O
{[%clk 0:02:48.8]} 14... Rd8 {[%clk 0:02:29.8]} 15. Bxg7 {[%clk 0:02:45.1]}
15... Kxg7 {[%clk 0:02:29.7]} 16. Qc3+ {[%clk 0:02:45.8]} 16... Kg8 {[%clk
0:02:28.4]} 17. Rad1 {[%clk 0:02:41.7]} 17... Nb4 {[%clk 0:02:27]} 18. Bxf7+
{[%clk 0:01:56.9]} 18... Kxf7 {[%clk 0:02:20.9]} 19. Ng5+ {[%clk 0:01:57.3]}
19... Ke8 {[%clk 0:01:44.5]} 20. Qh8+ {[%clk 0:01:54.1]} 1-0

[Event "*** Titled Tuesday Blitz"]
[Site "Chess.com"]
[Date "2021.04.27"]
[Round "7"]
[White "Durarbayli"]
[Black "adriangschnitzer"]
[Result "1-0"]
[WhiteElo "2735"]
[BlackElo "2501"]
[TimeControl "180+1"]
[EndTime "11:13:00 PDT"]
[Termination "Durarbayli won by resignation"]

1. e4 {[%clk 0:03:00.9]} 1... c5 {[%clk 0:02:59.5]} 2. b3 {[%clk 0:02:58.6]}
2... e5 {[%clk 0:02:58.5]} 3. Bb2 {[%clk 0:02:57.7]} 3... Nc6 {[%clk 0:02:58.4]}
4. Bc4 {[%clk 0:02:57.4]} 4... d6 {[%clk 0:02:58.3]} 5. f4 {[%clk 0:02:56.3]}
5... exf4 {[%clk 0:02:56.5]} 6. Nf3 {[%clk 0:02:56]} 6... Nf6 {[%clk 0:02:52.4]}
7. O-O {[%clk 0:02:50.8]} 7... Be6 {[%clk 0:02:52.4]} 8. Nc3 {[%clk 0:02:47.8]}
8... Bxc4 {[%clk 0:02:48.7]} 9. bxc4 {[%clk 0:02:48.7]} 9... Ne5 {[%clk
0:02:47.3]} 10. d3 {[%clk 0:02:41.5]} 10... Nxf3+ {[%clk 0:02:35.8]} 11. Qxf3
{[%clk 0:02:39.7]} 11... Be7 {[%clk 0:02:31.5]} 12. Qxf4 {[%clk 0:02:38]} 12...
O-O {[%clk 0:02:29.9]} 13. Rf3 {[%clk 0:02:36.1]} 13... Re8 {[%clk 0:02:11.1]}
14. Nd5 {[%clk 0:02:30.2]} 14... a6 {[%clk 0:02:02]} 15. Raf1 {[%clk 0:02:25.5]}
15... b5 {[%clk 0:02:00]} 16. Qg5 {[%clk 0:02:07.1]} 16... h6 {[%clk 0:01:50.4]}
17. Qg3 {[%clk 0:01:53.3]} 17... Nh5 {[%clk 0:01:48.4]} 18. Qg4 {[%clk
0:01:51.6]} 1-0

[Event "*** Titled Tuesday Blitz"]
[Site "Chess.com"]
[Date "2021.04.27"]
[Round "7"]
[White "1977Ivan"]
[Black "McCarthyStone"]
[Result "1-0"]
[WhiteElo "2646"]
[BlackElo "2349"]
[TimeControl "180+1"]
[EndTime "11:13:04 PDT"]
[Termination "1977Ivan won by resignation"]

1. e4 {[%clk 0:02:13.3]} 1... d6 {[%clk 0:02:58.7]} 2. d4 {[%clk 0:02:12.6]}
2... Nf6 {[%clk 0:02:59.2]} 3. Nc3 {[%clk 0:02:13.1]} 3... Nc6 {[%clk
0:02:59.8]} 4. f4 {[%clk 0:02:11.8]} 4... e5 {[%clk 0:02:59.7]} 5. d5 {[%clk
0:02:11.1]} 5... Nd4 {[%clk 0:02:58.5]} 6. Nf3 {[%clk 0:02:11]} 6... Bg4 {[%clk
0:02:58.3]} 7. Be3 {[%clk 0:02:08.4]} 7... Bxf3 {[%clk 0:02:39.5]} 8. gxf3
{[%clk 0:02:09.3]} 8... c5 {[%clk 0:02:39.9]} 9. dxc6 {[%clk 0:01:55.6]} 9...
Qb6 {[%clk 0:02:40]} 10. Bxd4 {[%clk 0:01:48.8]} 10... exd4 {[%clk 0:02:39.6]}
11. cxb7 {[%clk 0:01:49]} 11... Rb8 {[%clk 0:02:35]} 12. Nb5 {[%clk 0:01:42.2]}
12... d5 {[%clk 0:02:25.4]} 13. Qxd4 {[%clk 0:01:37.7]} 13... Qxd4 {[%clk
0:02:23]} 14. Nxd4 {[%clk 0:01:38.6]} 14... dxe4 {[%clk 0:02:23.9]} 15. Bb5+
{[%clk 0:01:37.2]} 15... Nd7 {[%clk 0:02:21.1]} 16. Bc6 {[%clk 0:01:25]} 16...
Bc5 {[%clk 0:02:17]} 17. O-O-O {[%clk 0:01:24.1]} 17... Rd8 {[%clk 0:01:56.9]}
18. Nf5 {[%clk 0:01:19.8]} 1-0